fUSD/lending_fUSD_20240525
["ID","MTS","AMOUNT","RATE_DAILY","PERIOD"]
[327923063,1716640238190,-804.1647504,0.00012991,2]
[327923064,1716640238200,-787.5210553,0.00012991,2]
[327923065,1716640238210,-770.8773602,0.00012991,2]
[327923066,1716640238219,-754.2336651,0.00012991,2]
[327923067,1716640238229,-4008.1827224,0.00012991,2]
[327923068,1716640238242,-3936.1093788,0.00012991,2]
[327923069,1716640238253,-3864.0360351,0.00012991,2]
[327923070,1716640238263,-3791.9626915,0.00012991,2]
[327923071,1716640238274,-155.17030415,0.00012998,2]
[327923072,1716640238285,-943.04918015,0.00012999,2]
[327923073,1716640238295,-321.96055433,0.00012999,2]
[327923074,1716640238304,-81957.38301531,0.00013,2]
[327923154,1716640240942,-3518.79617,0.00013,2]
[327923155,1716640240955,-1876.742,0.00013,2]
[327923156,1716640240966,-1644.2190017,0.00013,2]
[327923158,1716640242507,-926.90999973,0.00013,2]
[327923159,1716640242656,-273.06,0.00013,2]
[327923182,1716640243774,-23691.21192,0.00013,2]
[327923183,1716640244098,-24498.95,0.00013,2]
[327923184,1716640244110,-772.73617185,0.00013,2]
[327923185,1716640244122,-2871.58155586,0.00013,2]
[327923186,1716640244133,-260.62571296,0.00013,2]
[327923187,1716640244144,-469.67010088,0.00013,2]
[327923188,1716640244155,-801.0815854,0.00013,2]
[327923189,1716640244166,-981.30311709,0.00013,2]
[327923190,1716640244177,-528.90933,0.00013,2]
[327923191,1716640244188,-5054.5752389,0.00013,2]
[327923192,1716640244199,-350.07941028,0.00013,2]
[327923223,1716640245739,-13849.2,0.00013,2]
[327923226,1716640245755,-6916.8,0.00013,2]
[327923239,1716640245913,-43604.72366448,0.00013,2]
[327923241,1716640245923,-903592.5142996,0.00013,2]
[327923255,1716640246069,-1583.0242,0.00013,2]
[327923257,1716640246081,-783.12,0.00013,2]
[327923266,1716640246159,-14991.74337432,0.00013,2]
[327923335,1716641361120,-162.76717025,0.00010063,2]
[327923357,1716641431910,-261.01353915,0.00010063,2]
[327923358,1716641431920,-504.0,0.00010064,2]
[327923359,1716641431929,-250.0,0.00011721,2]
[327923360,1716641431939,-170.49,0.00011823,2]
[327923361,1716641431948,-2664.80701139,0.00011876,2]
[327923362,1716641432040,-360.51384595,0.00011876,2]
[327923363,1716641432084,-2790.34058908,0.00011876,2]
[327923364,1716641432127,-380.04295626,0.00011876,2]
[327923387,1716641437794,-4338.68434069,0.00011876,2]
[327923390,1716641437804,-800.0,0.00011877,2]
[327923393,1716641437814,-250.0,0.00011896,2]
[327923395,1716641437823,-200.0,0.00011928,2]
[327923397,1716641437833,-1763.05,0.00011941,2]
[327923399,1716641437842,-150.1,0.00011972,2]
[327923401,1716641437852,-3779.57600157,0.00011972,2]
[327923404,1716641437864,-1086.36399843,0.00011972,2]
[327923405,1716641437873,-4126.87764597,0.00012032,2]
[327923408,1716641437889,-19763.12235403,0.00012032,2]
[327923410,1716641437898,-200.0,0.0001205,2]
[327923412,1716641437907,-171.31,0.00012116,2]
[327923414,1716641437917,-1008.02014055,0.00012311,2]
[327923416,1716641437927,-504.0,0.00012328,2]
[327923418,1716641437936,-200.0,0.00012388,2]
[327923420,1716641437945,-305.72,0.0001239,2]
[327923422,1716641437955,-1920.56,0.0001239,2]
[327923424,1716641437964,-1234.0,0.000127,2]
[327923425,1716641437973,-392.8545,0.00012891,2]
[327923427,1716641437983,-986.6669,0.000129,2]
[327923429,1716641437992,-167.08175585,0.000129,2]
[327923431,1716641438002,-2873.58075158,0.000129,2]
[327923432,1716641438011,-204.50350122,0.000129,2]
[327923433,1716641438021,-630.58762724,0.000129,2]
[327923434,1716641438030,-531.57107404,0.000129,2]
[327923435,1716641438040,-3874.52805924,0.000129,2]
[327923436,1716641438049,-326.27937826,0.000129,2]
[327923437,1716641438058,-3646.81680528,0.00012986,2]
[327923438,1716641438106,-281.15994658,0.00012986,2]
[327923439,1716641438126,-668.09124459,0.00012986,2]
[327923440,1716641438136,-663.2024059,0.00012988,2]
[327923441,1716641438146,-2352.3410234,0.00012988,2]
[327923442,1716641438155,-1347.708175,0.00012988,2]
[327923443,1716641438165,-13985.0626907,0.00012988,2]
[327923444,1716641438174,-378.2363487,0.00012988,2]
[327923445,1716641438183,-1264.0116776,0.00012988,2]
[327923446,1716641438192,-757.2310495,0.00012988,2]
[327923448,1716641438202,-152.99,0.0001299,2]
[327923450,1716641438211,-152.99,0.0001299,2]
[327923452,1716641438221,-659.12759,0.00012991,2]
[327923453,1716641438230,-655.0527741,0.00012991,2]
[327923456,1716641438239,-650.9779583,0.00012991,2]
[327923457,1716641438249,-646.9031424,0.00012991,2]
[327923459,1716641438258,-2337.8878844,0.00012991,2]
[327923461,1716641438268,-2323.4347454,0.00012991,2]
[327923462,1716641438277,-2308.9816064,0.00012991,2]
[327923463,1716641438287,-2294.5284674,0.00012991,2]
[327923464,1716641438296,-1339.4276521,0.00012991,2]
[327923465,1716641438305,-1331.1471293,0.00012991,2]
[327923466,1716641438315,-1322.8666064,0.00012991,2]
[327923467,1716641438324,-1314.5860836,0.00012991,2]
[327923468,1716641438334,-13899.1363504,0.00012991,2]
[327923469,1716641438343,-13813.2100101,0.00012991,2]
[327923470,1716641438353,-13727.2836698,0.00012991,2]
[327923471,1716641438362,-13641.3573296,0.00012991,2]
[327923472,1716641438372,-375.9124074,0.00012991,2]
[327923473,1716641438381,-373.5884661,0.00012991,2]
[327923474,1716641438390,-371.2645248,0.00012991,2]
[327923475,1716641438400,-368.9405834,0.00012991,2]
[327923476,1716641438410,-1256.2453986,0.00012991,2]
[327923477,1716641438419,-1248.4791197,0.00012991,2]
[327923478,1716641438428,-1240.7128408,0.00012991,2]
[327923479,1716641438438,-265.81270254,0.00012991,2]
[327923480,1716641438555,-967.13385936,0.00012991,2]
[327923481,1716641438568,-754.886774,0.00012991,2]
[327923482,1716641438583,-480.81010268,0.00012991,2]
[327923483,1716641438600,-271.73239582,0.00012991,2]
[327923484,1716641438615,-750.198223,0.00012991,2]
[327923485,1716641438630,-747.8539474,0.00012991,2]
[327923486,1716641438645,-4342.61469774,0.00012997,2]
[327923487,1716641438672,-10869.07681564,0.00012997,2]
[327923488,1716641438687,-16653.84218818,0.00012997,2]
[327923489,1716641438700,-884.1676621,0.00012998,2]
[327923490,1716641438714,-360.51384595,0.00012998,2]
[327923491,1716641438727,-469.39885767,0.00012998,2]
[327923492,1716641438740,-792.50738408,0.00012998,2]
[327923493,1716641438751,-485.57953486,0.00012998,2]
[327923494,1716641438762,-325.80304841,0.00012998,2]
[327923495,1716641438775,-812.53302492,0.00012998,2]
[327923496,1716641438787,-205.11851024,0.00012998,2]
[327923497,1716641438801,-643.32897965,0.00012998,2]
[327923498,1716641438814,-321.96055433,0.00012998,2]
[327923499,1716641438826,-155.17030415,0.00012998,2]
[327923500,1716641438839,-234.22233037,0.00012998,2]
[327923501,1716641438854,-943.04918015,0.00012998,2]
[327923502,1716641438867,-623.47972891,0.00012998,2]
[327923503,1716641438879,-428.48017839,0.00012998,2]
[327923504,1716641438890,-380.12069688,0.00012999,2]
[327923505,1716641438901,-150.0,0.00012999,2]
[327923506,1716641438912,-208251.11435504,0.00013,2]
[327923507,1716641438925,-106795.00267712,0.00013,2]
[327923508,1716641438941,-8410.765,0.00013,2]
[327923509,1716641438953,-32623.13601012,0.00013,2]
[327923510,1716641438967,-1371.86561452,0.00013,2]
[327923524,1716641440427,-3765.8021,0.00013,2]
[327923525,1716641440441,-5232.65963,0.00013,2]
[327923526,1716641440520,-2322.27915239,0.00013,2]
[327923527,1716641440669,-434.48,0.00013,2]
[327923528,1716641441254,-3956.19304708,0.00013,2]
[327923529,1716641441269,-456.0134361,0.00013,2]
[327923530,1716641441373,-511.81449438,0.00013,2]
[327923553,1716641442896,-382.9766526,0.00012988,2]
[327923554,1716641442908,-381.7910135,0.00012991,2]
[327923555,1716641442920,-380.6053743,0.00012991,2]
[327923556,1716641442932,-379.4197351,0.00012991,2]
[327923557,1716641442944,-378.234096,0.00012991,2]
[327923558,1716641442953,-3183.24260835,0.00013,2]
[327923559,1716641443475,-1688.56499514,0.00013,2]
[327923562,1716641443487,-699.72,0.00013,2]
[327923566,1716641443499,-17899.15902022,0.00013,2]
[327923569,1716641443513,-1602.10727467,0.00013,2]
[327923573,1716641443524,-279.7230004,0.00013,2]
[327923578,1716641443537,-661.3131406,0.00013,2]
[327923581,1716641443551,-568775.74017075,0.00013,2]
[327923587,1716641446270,-361.89999998,0.00013,2]
[327923588,1716641446281,-6211.29509922,0.00013,2]
[327923609,1716642089991,506.45,9.998e-05,2]
[327923621,1716642624659,491.75,9.997e-05,2]
[327923633,1716642632143,-542.97148616,0.00011697,2]
[327923634,1716642632163,-521.88505719,0.00011697,2]
[327923635,1716642632173,-213.49566964,0.00011698,2]
[327923636,1716642632183,-250.0,0.00011854,2]
[327923637,1716642632193,-307.65,0.00011874,2]
[327923638,1716642632203,-1673.69,0.00011895,2]
[327923639,1716642632213,-199.9,0.00011914,2]
[327923640,1716642632222,-250.0,0.00011914,2]
[327923641,1716642632232,-640.0,0.00011915,2]
[327923642,1716642632242,-897.27819055,0.00011915,2]
[327923643,1716642632253,-439.23180945,0.00011915,2]
[327923644,1716642632263,-371.82488668,0.00011936,2]
[327923645,1716642632274,-1616.31417857,0.00011936,2]
[327923646,1716642632287,-8421.46922863,0.00011936,2]
[327923647,1716642632308,-1320.12980124,0.00011936,2]
[327923648,1716642632324,-418.54007673,0.00011936,2]
[327923649,1716642632336,-472.04,0.00011936,2]
[327923650,1716642632354,-544.05658617,0.00011936,2]
[327923651,1716642632370,-216.32524198,0.00011936,2]
[327923652,1716642632380,-150.14,0.00012028,2]
[327923653,1716642632390,-360.0,0.00012183,2]
[327923654,1716642632400,-491.75,0.00012261,2]
[327923670,1716642632646,-150.14,0.00012341,2]
[327923672,1716642632657,-312.71181864,0.00012348,2]
[327923674,1716642632666,-150.14,0.00012655,2]
[327923676,1716642632675,-157.33771067,0.00012738,2]
[327923678,1716642632685,-892.0534,0.00012891,2]
[327923680,1716642632694,-721.84440364,0.00012899,2]
[327923682,1716642632706,-278.15559636,0.00012899,2]
[327923684,1716642632715,-10340.6251,0.000129,2]
[327923685,1716642632724,-1000.0,0.000129,2]
[327923686,1716642632733,-3036.02551004,0.000129,2]
[327923687,1716642632744,-969.45652537,0.000129,2]
[327923688,1716642632755,-3367.93087916,0.000129,2]
[327923689,1716642632767,-1169.32315803,0.000129,2]
[327923690,1716642632786,-2440.46034411,0.000129,2]
[327923709,1716642638572,-17613.72050029,0.000129,2]
[327923710,1716642638581,-12320.6937,0.000129,2]
[327923711,1716642638590,-5000.0,0.000129,2]
[327923712,1716642638602,-167.08175585,0.000129,2]
[327923713,1716642638612,-2835.2935171,0.000129,2]
[327923714,1716642638621,-298.12642203,0.000129,2]
[327923715,1716642638631,-628.60366524,0.000129,2]
[327923716,1716642638640,-326.40257233,0.000129,2]
[327923717,1716642638650,-2068.83014874,0.00012968,2]
[327923718,1716642638659,-882.49165964,0.00012968,2]
[327923719,1716642638669,-157.15535153,0.00012968,2]
[327923720,1716642638678,-281.43910097,0.00012979,2]
[327923721,1716642638689,-281.43910097,0.00012979,2]
[327923722,1716642638698,-281.43910097,0.00012979,2]
[327923723,1716642638708,-281.43910097,0.00012979,2]
[327923724,1716642638718,-281.43910097,0.00012979,2]
[327923725,1716642638727,-281.43910097,0.00012979,2]
[327923726,1716642638737,-281.43910097,0.00012979,2]
[327923727,1716642638747,-281.43910097,0.00012979,2]
[327923728,1716642638756,-281.43910097,0.0001298,2]
[327923729,1716642638766,-281.43910097,0.00012981,2]
[327923730,1716642638774,-281.43910097,0.00012981,2]
[327923731,1716642638783,-281.43910097,0.00012981,2]
[327923732,1716642638793,-281.43910097,0.00012981,2]
[327923733,1716642638802,-281.43910097,0.00012981,2]
[327923734,1716642638811,-281.43910097,0.00012981,2]
[327923735,1716642638821,-281.43910097,0.00012981,2]
[327923736,1716642638830,-281.43910097,0.00012981,2]
[327923737,1716642638839,-281.43910097,0.00012981,2]
[327923738,1716642638851,-281.43910097,0.00012981,2]
[327923739,1716642638860,-281.43910097,0.00012981,2]
[327923740,1716642638870,-281.43910097,0.00012981,2]
[327923741,1716642638879,-281.43910097,0.00012981,2]
[327923742,1716642638888,-281.43910097,0.00012981,2]
[327923743,1716642638897,-281.43910097,0.00012981,2]
[327923744,1716642638907,-281.43910097,0.00012981,2]
[327923745,1716642638919,-281.43910097,0.00012981,2]
[327923746,1716642638931,-281.43910097,0.00012981,2]
[327923747,1716642638940,-281.43910097,0.00012981,2]
[327923748,1716642638950,-281.43910097,0.00012981,2]
[327923749,1716642638959,-281.43910097,0.00012981,2]
[327923750,1716642638969,-281.43910097,0.00012981,2]
[327923752,1716642638979,-281.43910097,0.00012981,2]
[327923754,1716642638987,-281.43910097,0.00012981,2]
[327923756,1716642638998,-281.43910097,0.00012981,2]
[327923758,1716642639007,-281.43910097,0.00012981,2]
[327923760,1716642639017,-281.43910097,0.00012981,2]
[327923762,1716642639026,-281.43910097,0.00012981,2]
[327923764,1716642639035,-281.43910097,0.00012981,2]
[327923766,1716642639045,-281.43910097,0.00012981,2]
[327923768,1716642639054,-281.43910097,0.00012981,2]
[327923770,1716642639063,-281.43910097,0.00012981,2]
[327923771,1716642639073,-281.43910097,0.00012981,2]
[327923773,1716642639082,-281.43910097,0.00012981,2]
[327923775,1716642639093,-281.43910097,0.00012981,2]
[327923777,1716642639102,-281.43910097,0.00012981,2]
[327923779,1716642639111,-281.43910097,0.00012981,2]
[327923781,1716642639121,-281.43910097,0.00012981,2]
[327923783,1716642639131,-281.43910097,0.00012981,2]
[327923785,1716642639140,-281.43910097,0.00012981,2]
[327923787,1716642639149,-281.43910097,0.00012988,2]
[327923789,1716642639158,-873.126,0.00012989,2]
[327923791,1716642639168,-884.1676621,0.00012989,2]
[327923793,1716642639177,-190.1071406,0.00012989,2]
[327923795,1716642639186,-6053.1486876,0.00012989,2]
[327923796,1716642639196,-21938.7453408,0.00012989,2]
[327923797,1716642639205,-745.50967219,0.00012989,2]
[327923798,1716642639215,-440.8103151,0.00012989,2]
[327923799,1716642639224,-150.95,0.0001299,2]
[327923800,1716642639233,-150.95,0.0001299,2]
[327923801,1716642639243,-150.95,0.0001299,2]
[327923802,1716642639252,-150.95,0.0001299,2]
[327923803,1716642639261,-150.95,0.0001299,2]
[327923804,1716642639272,-150.95,0.0001299,2]
[327923805,1716642639282,-150.95,0.0001299,2]
[327923806,1716642639291,-150.95,0.0001299,2]
[327923807,1716642639301,-150.95,0.0001299,2]
[327923808,1716642639310,-150.95,0.0001299,2]
[327923809,1716642639320,-150.95,0.0001299,2]
[327923810,1716642639329,-150.95,0.0001299,2]
[327923811,1716642639339,-150.95,0.0001299,2]
[327923813,1716642639352,-150.95,0.0001299,2]
[327923815,1716642639361,-150.95,0.0001299,2]
[327923817,1716642639370,-150.95,0.0001299,2]
[327923819,1716642639380,-150.95,0.0001299,2]
[327923821,1716642639390,-150.95,0.0001299,2]
[327923823,1716642639400,-195.7429699,0.00012991,2]
[327923825,1716642639409,-201.3787992,0.00012991,2]
[327923827,1716642639419,-207.0146285,0.00012991,2]
[327923829,1716642639428,-212.6504578,0.00012991,2]
[327923831,1716642639439,-6232.5975639,0.00012991,2]
[327923833,1716642639448,-6412.0464401,0.00012991,2]
[327923835,1716642639458,-6591.4953163,0.00012991,2]
[327923837,1716642639468,-6770.9441926,0.00012991,2]
[327923839,1716642639477,-22589.1313466,0.00012991,2]
[327923841,1716642639486,-23239.5173524,0.00012991,2]
[327923843,1716642639496,-23889.9033582,0.00012991,2]
[327923845,1716642639505,-24540.2893641,0.00012991,2]
[327923847,1716642639515,-455.7685996,0.00012991,2]
[327923849,1716642639525,-470.7268841,0.00012991,2]
[327923851,1716642639535,-485.6851687,0.00012991,2]
[327923853,1716642639545,-500.6434532,0.00012991,2]
[327923855,1716642639555,-3152.5614987,0.00012998,2]
[327923857,1716642639565,-201.91969004,0.00012998,2]
[327923859,1716642639575,-499.82131299,0.00012998,2]
[327923861,1716642639584,-3359.94996961,0.00012998,2]
[327923863,1716642639596,-211.36766573,0.00012998,2]
[327923865,1716642639605,-428.82549784,0.00012998,2]
[327923867,1716642639616,-1021.7503161,0.00012998,2]
[327923869,1716642639625,-456.62320281,0.00012998,2]
[327923871,1716642639634,-360.51384595,0.00012998,2]
[327923873,1716642639643,-205.11851024,0.00012998,2]
[327923875,1716642639653,-623.47972891,0.00012998,2]
[327923877,1716642639663,-321.96055433,0.00012998,2]
[327923879,1716642639672,-643.32897965,0.00012998,2]
[327923881,1716642639682,-792.50738408,0.00012998,2]
[327923883,1716642639691,-469.39885767,0.00012998,2]
[327923885,1716642639700,-236.02938146,0.00012998,2]
[327923886,1716642639709,-155.17030415,0.00012998,2]
[327923888,1716642639719,-485.57953486,0.00012998,2]
[327923890,1716642639729,-234.22233037,0.00012998,2]
[327923892,1716642639739,-943.04918015,0.00012998,2]
[327923894,1716642639749,-428.48017839,0.00012998,2]
[327923895,1716642639759,-380.12069688,0.00012998,2]
[327923896,1716642639768,-325.80304841,0.00012998,2]
[327923897,1716642639778,-184.50210729,0.00012999,2]
[327923898,1716642639788,-1615.20631682,0.00012999,2]
[327923899,1716642639797,-150.0,0.00012999,2]
[327923900,1716642639807,-219572.12810762,0.00013,2]
[327923901,1716642639817,-3598.566,0.00013,2]
[327923902,1716642639828,-579295.35129836,0.00013,2]
[327923903,1716642639842,-331933.52879768,0.00013,2]
[327923904,1716642639856,-716.51518713,0.00013,2]
[327923905,1716642639881,-978373.64758443,0.00013,2]
[327923906,1716642639896,-494.21133042,0.00013,2]
[327923911,1716642640769,-9618.72676101,0.00013,2]
[327923912,1716642640819,-1419.40897703,0.00013,2]
[327923913,1716642640831,-299.00073774,0.00013,2]
[327923914,1716642640843,-1383.54939479,0.00013,2]
[327923915,1716642641045,-8388.5,0.00013,2]
[327923950,1716642643248,-1448039.19819397,0.00013,2]
[327923958,1716642643519,-212.26858926,0.00013,2]
[327923960,1716642643531,-29072.55842059,0.00013,2]
[327923961,1716642643543,-623.11633719,0.00013,2]
[327923999,1716643704831,643.6516771,0.00031,120]
[327924022,1716643832506,-516.73760143,0.00010474,2]
[327924023,1716643832516,-151.36439907,0.00010475,2]
[327924024,1716643832692,-291.20560093,0.00010475,2]
[327924025,1716643832704,-250.0,0.00012196,2]
[327924026,1716643832714,-681.25,0.00012196,2]
[327924027,1716643832724,-1000.0,0.0001243,2]
[327924028,1716643832734,-442.57,0.00012739,2]
[327924029,1716643832743,-153.02,0.00012762,2]
[327924030,1716643832753,-153.02,0.00012794,2]
[327924031,1716643832763,-1068.8823,0.00012798,2]
[327924032,1716643832773,-1000.0,0.000128,2]
[327924033,1716643832782,-153.02,0.00012825,2]
[327924034,1716643832792,-200.0,0.00012895,2]
[327924035,1716643832801,-200.0,0.00012896,2]
[327924036,1716643832811,-854.0738,0.00012898,2]
[327924037,1716643832820,-5730.9689,0.00012898,2]
[327924038,1716643832830,-500.0,0.00012898,2]
[327924039,1716643832839,-10.62559823,0.00012898,2]
[327924040,1716643834481,-99989.37440177,0.00012898,2]
[327924041,1716643834491,-2599.01905736,0.00012898,2]
[327924042,1716643834503,-326.40257233,0.00012898,2]
[327924043,1716643834514,-2439.3924,0.000129,2]
[327924044,1716643834524,-170297.07776208,0.000129,2]
[327924045,1716643834536,-319.5176318,0.000129,2]
[327924046,1716643834549,-3421.26789501,0.000129,2]
[327924047,1716643834601,-1110.966,0.000129,2]
[327924048,1716643834613,-1126.80000001,0.000129,2]
[327924085,1716643838442,-68724.3707111,0.000129,2]
[327924086,1716643838451,-7500.0,0.000129,2]
[327924087,1716643838461,-198.75094802,0.000129,2]
[327924088,1716643838470,-5120.10234696,0.000129,2]
[327924089,1716643838479,-419.06911016,0.000129,2]
[327924090,1716643838489,-4782.5909835,0.00012989,2]
[327924091,1716643838498,-515.601738,0.00012989,2]
[327924092,1716643838507,-218.28628837,0.00012989,2]
[327924093,1716643838516,-5012.292486,0.00012991,2]
[327924094,1716643838526,-5241.9939884,0.00012991,2]
[327924095,1716643838535,-5471.6954909,0.00012991,2]
[327924096,1716643838544,-211116.09544138,0.00012998,2]
[327924097,1716643838553,-664052.79805164,0.00012998,2]
[327924098,1716643838565,-14225.20555249,0.00012998,2]
[327924099,1716643838577,-1699.69999983,0.00012998,2]
[327924100,1716643838588,-586.04902202,0.00012998,2]
[327924101,1716643838601,-680.9102,0.00012998,2]
[327924102,1716643838612,-1138.47,0.00012998,2]
[327924103,1716643838623,-17200.000001,0.00012998,2]
[327924104,1716643838647,-2214.01037376,0.00012998,2]
[327924105,1716643838659,-585.23937953,0.00012998,2]
[327924106,1716643838672,-222408.31194608,0.00012998,2]
[327924107,1716643838726,-2983.5789899,0.00012998,2]
[327924108,1716643838737,-5188.50613042,0.00012998,2]
[327924109,1716643838748,-16418.818,0.00012998,2]
[327924110,1716643838760,-996.2995829,0.00012998,2]
[327924187,1716643841441,-362.572002,0.00012998,2]
[327924188,1716643841471,-498.80996954,0.00012998,2]
[327924189,1716643841483,-1410.85410702,0.00012998,2]
[327924190,1716643841494,-7963.54965438,0.00012998,2]
[327924191,1716643841517,-637.5891004,0.00012998,2]
[327924192,1716643841590,-843.15773648,0.00012998,2]
[327924193,1716643841659,-358.515,0.00012998,2]
[327924194,1716643841673,-348.45226352,0.00012998,2]
[327924195,1716643841684,-26874.8544261,0.00012998,2]
[327924196,1716643841695,-3336.5,0.00012998,2]
[327924254,1716643844395,-3819.9,0.00012998,2]
[327924255,1716643844411,-34959.92088962,0.00012998,2]
[327924256,1716643844424,-2990.94400471,0.00012998,2]
[327924257,1716643844436,-5874.78992855,0.00012998,2]
[327924258,1716643844448,-80537.93935189,0.00012998,2]
[327924259,1716643844460,-724.95482225,0.00012998,2]
[327924260,1716643844485,-5981.24430528,0.00012998,2]
[327924261,1716643844498,-300.0,0.00012998,2]
[327924285,1716643845833,-10001.19563886,0.00012998,2]
[327924286,1716643845844,-360.51384595,0.00012998,2]
[327924287,1716643845854,-348.45226352,0.00012998,2]
[327924288,1716643845865,-1212.93169381,0.00012998,2]
[327924289,1716643845875,-6100.58153372,0.00012998,2]
[327924290,1716643845885,-460.70093847,0.00012998,2]
[327924291,1716643845895,-2001.17311596,0.00012998,2]
[327924292,1716643845906,-811.53627074,0.00012999,2]
[327924293,1716643845915,-669227.73713926,0.00013,2]
[327924296,1716643845932,-17298.0,0.00013,2]
[327924300,1716644187660,3000000.0,0.00028,30]
[327924314,1716644611790,424.56,9.775e-05,2]
[327924315,1716644720573,-940.14892512,0.00010333,2]
[327924316,1716644720599,-643.9738315,0.00010334,2]
[327924317,1716644720623,-268.51121267,0.00010335,2]
[327924318,1716644721486,240.98288585,0.00010332,2]
[327924328,1716644981909,300.37851904,0.00010332,2]
[327924348,1716645031806,-240.98288585,0.00010957,2]
[327924349,1716645031816,-66.63317206,0.00010958,5]
[327924350,1716645031828,-1024.53356218,0.00010958,5]
[327924351,1716645032801,-346.425,0.00010958,5]
[327924352,1716645032886,-1255.22905528,0.00010958,5]
[327924353,1716645032896,-695.07,0.00010959,2]
[327924354,1716645032905,-282.1196435,0.0001139,2]
[327924355,1716645032914,-753.21042176,0.00011518,2]
[327924356,1716645032923,-440.81,0.00011625,3]
[327924357,1716645032932,-598.19,0.00011647,2]
[327924358,1716645032942,-250.0,0.00011673,2]
[327924359,1716645032951,-1765.82,0.00011695,2]
[327924360,1716645032962,-1000.0,0.00011879,2]
[327924361,1716645032971,-155.22,0.00011988,2]
[327924362,1716645032980,-33.9777039,0.00012039,2]
[327924363,1716645032991,-390.5822961,0.00012039,2]
[327924364,1716645032999,-155.22,0.00012092,2]
[327924365,1716645033009,-155.22,0.00012196,2]
[327924366,1716645033017,-55.25058747,0.000123,2]
[327924367,1716645033029,-99.96941253,0.000123,2]
[327924368,1716645033038,-155.22,0.00012404,2]
[327924369,1716645033047,-155.22,0.00012508,2]
[327924370,1716645033056,-155.0,0.00012542,2]
[327924371,1716645033064,-155.22,0.00012612,2]
[327924372,1716645033073,-713.80457029,0.00012798,2]
[327924373,1716645033082,-220.65236088,0.00012798,2]
[327924374,1716645033091,-244.15816659,0.00012798,2]
[327924375,1716645033099,-885.6821484,0.00012798,2]
[327924376,1716645033108,-281.15994658,0.00012799,2]
[327924377,1716645033117,-245000.0,0.000128,2]
[327924378,1716645033126,-87849.83032262,0.000128,2]
[327924384,1716645037650,-467.22619257,0.000128,2]
[327924385,1716645037668,-631.06500627,0.000128,2]
[327924389,1716645037750,-2850.20155374,0.000128,2]
[327924390,1716645037854,-4591.90000003,0.000128,2]
[327924391,1716645037961,-3609.77692477,0.000128,2]
[327924392,1716645037975,-190.94720952,0.00012899,2]
[327924393,1716645037985,-190.94720948,0.00012899,2]
[327924394,1716645037995,-190.94720948,0.000129,2]
[327924395,1716645038004,-190.94720948,0.000129,2]
[327924396,1716645038014,-165.58901278,0.000129,2]
[327924397,1716645038024,-7500.0,0.000129,2]
[327924398,1716645038034,-190.94720948,0.000129,2]
[327924399,1716645038043,-274.18046785,0.000129,2]
[327924400,1716645038053,-770.69552409,0.000129,2]
[327924401,1716645038063,-5561.15652548,0.000129,2]
[327924403,1716645038073,-3301.6899696,0.00012988,2]
[327924404,1716645038083,-150.86,0.00012989,2]
[327924406,1716645038092,-150.86,0.0001299,2]
[327924408,1716645038102,-150.86,0.0001299,2]
[327924409,1716645038112,-150.86,0.0001299,2]
[327924410,1716645038122,-150.86,0.0001299,2]
[327924411,1716645038133,-2756.513681,0.00012991,2]
[327924412,1716645038143,-2211.3373924,0.00012991,2]
[327924413,1716645038152,-1666.1611038,0.00012991,2]
[327924414,1716645038162,-173.34,0.00012993,2]
[327924415,1716645038173,-677.8825155,0.00012997,2]
[327924416,1716645038183,-16653.84218818,0.00012997,2]
[327924417,1716645038194,-259.00448085,0.00012998,2]
[327924418,1716645038204,-167.83280986,0.00012998,2]
[327924419,1716645038214,-155.40939933,0.00012998,2]
[327924420,1716645038224,-194.89395882,0.00012998,2]
[327924421,1716645038236,-155.11805651,0.00012998,2]
[327924422,1716645038246,-3830.56539731,0.00012998,2]
[327924423,1716645038255,-6745.47454437,0.00012999,2]
[327924437,1716645040467,-5613.01116901,0.000129,2]
[327924441,1716645040479,-700.59820612,0.000129,2]
[327924456,1716645041925,-1186.39062487,0.000129,2]
[327924457,1716645041935,-68229.28129113,0.00012999,2]